bitfinex-derivatives/quotes_BNBF0:USTF0_20250904
["timestamp","ask_amount","ask_price","bid_price","bid_amount"]
[1756955894046,0.20449417,851.2,850.95,0.58784767]
[1756955894249,0.20449417,851.2,850.96,0.58784767]
[1756955894550,0.20449417,851.2,850.97,0.58784767]
[1756955894749,0.20449417,851.2,850.98,0.58784767]
[1756955894949,0.20449417,851.2,850.99,0.58784767]
[1756955895149,0.20449417,851.2,851.0,0.58784767]
[1756955895349,0.20449417,851.2,851.01,0.58784767]
[1756955895548,0.20449417,851.2,850.54,0.79035519]
[1756955895549,0.20449417,851.2,851.02,0.58784767]
[1756955895747,0.20449417,851.2,850.54,0.79035519]
[1756955895950,0.20449417,851.2,850.55,1.29748868]
[1756955896149,0.20449417,851.2,850.56,1.29748868]
[1756955896351,0.20449417,851.2,850.57,1.29748868]
[1756955896550,0.20449417,851.2,850.58,1.29748868]
[1756955896749,0.20449417,851.2,850.59,1.29748868]
[1756955896955,0.20449417,851.2,850.6,1.29748868]
[1756955897254,0.20449417,851.2,850.61,1.29748868]
[1756955897552,0.20449417,851.2,850.62,1.29748868]
[1756955897854,0.20449417,851.2,850.63,1.29748868]
[1756955898054,0.20449417,851.2,850.64,1.29748868]
[1756955898253,0.20449417,851.2,850.5,0.79035519]
[1756955898254,0.20449417,851.2,850.65,1.29748868]
[1756955898458,0.20449417,851.2,850.66,1.29748868]
[1756955898752,0.20449417,851.2,850.67,1.29748868]
[1756955898958,0.20449417,851.2,850.68,1.29748868]
[1756955899158,0.20449417,851.2,850.69,1.29748868]
[1756955899355,0.20449417,851.2,850.7,1.29748868]
[1756955899556,0.20449417,851.2,850.71,1.29748868]
[1756955899854,0.20449417,851.2,850.72,1.29748868]
[1756955900054,0.20449417,851.2,850.73,1.29748868]
[1756955900259,0.20449417,851.2,850.74,1.29748868]
[1756955900457,0.20449417,851.2,850.75,1.29748868]
[1756955900661,0.20449417,851.2,850.76,1.29748868]
[1756955900858,0.20449417,851.2,850.77,1.29748868]
[1756955901059,0.20449417,851.2,850.78,1.29748868]
[1756955901361,0.20449417,851.2,850.79,1.29748868]
[1756955901561,0.20449417,851.2,850.8,1.29748868]
[1756955901758,0.20449417,851.2,850.81,0.58776699]
[1756955901962,0.20449417,851.2,850.82,0.58776699]
[1756955902161,0.20449417,851.2,850.83,0.58776699]
[1756955902363,0.20449417,851.2,850.84,0.58776699]
[1756955902565,0.20449417,851.2,850.85,0.58776699]
[1756955902762,0.20449417,851.2,850.86,0.58776699]
[1756955902965,0.20449417,851.2,850.87,0.58776699]
[1756955903165,0.20449417,851.2,850.88,0.58776699]
[1756955903362,0.20449417,851.2,850.89,0.58776699]
[1756955903563,0.20449417,851.2,850.9,0.58776699]
[1756955903762,0.20449417,851.2,850.91,0.58776699]
[1756955903965,0.20449417,851.2,850.92,0.58776699]
[1756955904168,0.20449417,851.2,850.93,0.58776699]
[1756955904367,0.20449417,851.2,850.94,0.58776699]
[1756955904568,0.20449417,851.2,850.95,0.58776699]
[1756955904769,0.20449417,851.2,850.96,0.58776699]
[1756955905070,0.20449417,851.2,850.97,0.58776699]
[1756955905268,0.20449417,851.2,850.04,1.0501474]
[1756955905470,0.20449417,851.2,850.3,0.79108124]
[1756955905668,0.20449417,851.2,850.31,1.29440349]
[1756955905969,0.20449417,851.2,850.32,1.29440349]
[1756955906169,0.20449417,851.2,850.33,1.29440349]
[1756955906367,0.20449417,851.2,850.34,1.29440349]
[1756955906570,0.20449417,851.2,850.35,1.29440349]
[1756955906867,0.20449417,851.2,850.36,1.29440349]
[1756955907165,0.20449417,851.2,850.37,1.29440349]
[1756955907466,0.20449417,851.2,850.38,1.29440349]
[1756955907665,0.20449417,851.2,850.39,1.29440349]
[1756955907969,0.20449417,851.2,850.4,1.29440349]
[1756955908169,0.20449417,851.2,850.41,1.29440349]
[1756955908367,0.20449417,851.2,850.42,1.29440349]
[1756955908565,0.20449417,851.2,850.43,1.29440349]
[1756955908765,0.20449417,851.2,850.44,1.29440349]
[1756955908965,0.20449417,851.2,850.45,1.29440349]
[1756955909166,0.20449417,851.2,850.46,1.29440349]
[1756955909469,0.20449417,851.2,850.47,1.29440349]
[1756955909670,0.20449417,851.2,850.48,1.29440349]
[1756955909870,0.20449417,851.2,850.49,1.29440349]
[1756955910073,0.20449417,851.2,850.5,1.29440349]
[1756955910271,0.20449417,851.2,850.51,1.29440349]
[1756955910467,0.20449417,851.2,850.52,1.29440349]
[1756955910667,0.20449417,851.2,850.53,1.29440349]
[1756955910873,0.20449417,851.2,850.54,1.29440349]
[1756955911072,0.20449417,851.2,850.55,1.29440349]
[1756955911376,0.20449417,851.2,850.56,1.29440349]
[1756955911573,0.20449417,851.2,850.57,1.29440349]
[1756955911774,0.20449417,851.2,850.58,1.29440349]
[1756955911970,0.20449417,851.2,850.59,1.29440349]
[1756955912174,0.20449417,851.2,850.6,1.29440349]
[1756955912370,0.20449417,851.2,850.61,1.29440349]
[1756955912570,0.20449417,851.2,850.62,1.29440349]
[1756955912773,0.20449417,851.2,850.63,1.29440349]
[1756955912975,0.20449417,851.2,850.64,1.29440349]
[1756955913174,0.20449417,851.2,850.65,1.29440349]
[1756955913372,0.20449417,851.2,850.66,1.29440349]
[1756955913573,0.20449417,851.2,850.67,1.29440349]
[1756955913772,0.20449417,851.2,850.68,1.29440349]
[1756955913977,0.20449417,851.2,850.69,1.29440349]
[1756955914174,0.20449417,851.2,850.7,1.29440349]
[1756955914472,0.20449417,851.2,850.71,1.29440349]
[1756955914671,0.20449417,851.2,850.72,1.29440349]
[1756955914872,0.20449417,851.2,850.73,1.29440349]
[1756955915073,0.20449417,851.2,850.74,1.29440349]
[1756955915276,0.20449417,851.2,850.75,1.29440349]
[1756955915472,0.20449417,851.2,850.76,1.29440349]
[1756955915674,0.20449417,851.2,850.77,1.29440208]
[1756955915974,0.20449417,851.2,850.78,1.29440208]
[1756955916176,0.20449417,851.2,850.79,1.29440208]
[1756955916382,0.20449417,851.2,850.8,1.29440208]
[1756955916577,0.20449417,851.2,850.81,1.29440208]
[1756955916877,0.20449417,851.2,850.82,0.58784163]
[1756955917080,0.20449417,851.2,850.83,0.58784163]
[1756955917381,0.20449417,851.2,850.84,0.58784163]
[1756955917579,0.20449417,851.2,850.85,0.58784163]
[1756955917878,0.20449417,851.2,850.86,0.58784163]
[1756955918083,0.20449417,851.2,850.87,0.58784163]
[1756955918383,0.20449417,851.2,850.88,0.58784163]
[1756955918579,0.20449417,851.2,850.89,0.58784163]
[1756955918778,0.20449417,851.2,850.9,0.58784163]
[1756955919077,0.20449417,851.2,850.91,0.58784163]
[1756955919281,0.20449417,851.2,850.92,1.29485906]
[1756955919481,0.20449417,851.2,850.93,1.29485906]
[1756955919677,0.20449417,851.2,850.94,1.29485906]
[1756955919982,0.20449417,851.2,850.95,1.29485906]
[1756955920180,0.20449417,851.2,850.96,1.29485906]
[1756955920480,0.20449417,851.2,850.97,1.29485906]
[1756955920684,0.20449417,851.2,850.98,1.29485906]
[1756955920886,0.20449417,851.2,850.99,1.29485906]
[1756955921084,0.20449417,851.2,851.0,1.29485906]
[1756955921285,0.20449417,851.2,851.01,1.29485906]
[1756955921584,0.20449417,851.2,851.02,0.58784163]
[1756955921784,0.20449417,851.2,851.03,0.58784163]
[1756955921981,0.20449417,851.2,851.04,0.58784163]
[1756955922183,0.20449417,851.2,851.05,0.58784163]
[1756955922383,0.20449417,851.2,851.06,0.58784163]
[1756955922584,0.20449417,851.2,851.07,0.58784163]
[1756955922785,0.20449417,851.2,851.08,0.58784163]
[1756955923080,0.20449417,851.2,851.09,0.58784163]
[1756955923281,0.20449417,851.2,851.1,0.58784163]
[1756955923482,0.20449417,851.2,850.5,0.79108124]
[1756955923483,0.20449417,851.2,851.11,0.58784163]
[1756955923681,0.20449417,851.2,850.59,0.79108124]
[1756955923881,0.20449417,851.2,850.6,1.29460431]
[1756955924085,0.20449417,851.2,850.61,1.29460431]
[1756955924286,0.20449417,851.2,850.62,1.29460431]
[1756955924586,0.20449417,851.2,850.63,1.29460431]
[1756955924882,0.20449417,851.2,850.64,1.29460431]
[1756955925085,0.20449417,851.2,850.65,1.29460431]
[1756955925285,0.20449417,851.2,850.66,1.29460431]
[1756955925486,0.20449417,851.2,850.67,1.29460431]
[1756955925686,0.20449417,851.2,850.68,1.29460431]
[1756955925883,0.20449417,851.2,850.69,1.29460431]
[1756955926185,0.20449417,851.2,850.7,1.29460453]
[1756955926386,0.20449417,851.2,850.71,1.29460453]
[1756955926582,0.20449417,851.2,850.72,1.29450976]
[1756955926787,0.20449417,851.2,850.73,1.29450976]
[1756955926987,0.20449417,851.2,850.74,1.29450976]
[1756955927188,0.20449417,851.2,850.75,1.29450976]
[1756955927389,0.20449417,851.2,850.76,1.29450976]
[1756955927588,0.20449417,851.2,850.77,1.29450976]
[1756955927889,0.20449417,851.2,850.78,1.29450976]
[1756955928084,0.20449417,851.2,850.79,1.29450976]
[1756955928285,0.20449417,851.2,850.8,1.29450976]
[1756955928486,0.20449417,851.2,850.81,1.29450976]
[1756955928788,0.20449417,851.2,850.82,1.29450976]
[1756955928985,0.20449417,851.2,850.83,1.29450976]
[1756955929186,0.20449417,851.2,850.84,1.29450976]
[1756955929390,0.20449417,851.2,850.85,1.29450976]
[1756955929585,0.20449417,851.2,850.86,1.29450976]
[1756955929791,0.20449417,851.2,850.87,1.29450976]
[1756955929985,0.20449417,851.2,850.88,1.29450976]
[1756955930187,0.20449417,851.2,850.89,0.58775622]
[1756955930488,0.20449417,851.2,850.9,0.58775622]
[1756955930786,0.20449417,851.2,850.91,0.58775622]
[1756955930990,0.20449417,851.2,850.92,0.58775622]
[1756955931189,0.20449417,851.2,850.93,0.58775622]
[1756955931490,0.20449417,851.2,850.94,0.58775622]
[1756955931691,0.20449417,851.2,850.95,0.58775622]
[1756955931986,0.20449417,851.2,850.96,0.58775622]
[1756955932190,0.20449417,851.2,850.97,0.58775622]
[1756955932387,0.20449417,851.2,850.98,0.58775622]
[1756955932690,0.20449417,851.2,850.99,0.58775622]
[1756955932887,0.20449417,851.2,851.0,0.58775622]
[1756955933191,0.20449417,851.2,850.64,0.79128304]
[1756955933486,0.20449417,851.2,850.65,1.29451611]
[1756955933686,0.20449417,851.2,850.66,1.29451611]
[1756955933991,0.20449417,851.2,850.67,1.29451611]
[1756955934186,0.20449417,851.2,850.68,1.29451611]
[1756955934385,0.20449417,851.2,850.69,1.29451611]
[1756955934693,0.20449417,851.2,850.7,1.29451611]
[1756955934890,0.20449417,851.2,850.71,1.29451611]
[1756955935091,0.20449417,851.2,850.72,1.29451611]
[1756955935290,0.20449417,851.2,850.73,1.29451611]
[1756955935490,0.20449417,851.2,850.74,1.29451611]
[1756955935786,0.20449417,851.2,850.75,1.29451611]
[1756955935991,0.20449417,851.2,850.76,1.29451611]
[1756955936190,0.20449417,851.2,850.77,1.29451611]
[1756955936389,0.20449417,851.2,850.78,1.29451611]
[1756955936588,0.20449417,851.2,850.79,1.29451611]
[1756955936788,0.20449417,851.2,850.8,1.29451611]
[1756955936991,0.20449417,851.2,850.81,1.29451611]
[1756955937194,0.20449417,851.2,850.82,1.29451611]
[1756955937394,0.20449417,851.2,850.83,1.29451611]
[1756955937594,0.20449417,851.2,850.84,1.29451611]
[1756955937790,0.20449417,851.2,850.85,1.29451611]
[1756955937992,0.20449417,851.2,850.86,1.29451611]
[1756955938191,0.20449417,851.2,850.87,1.29451611]
[1756955938494,0.20449417,851.2,850.88,1.29451611]
[1756955938794,0.20449417,851.2,850.89,1.29451611]
[1756955939091,0.20449417,851.2,850.9,1.29451611]
[1756955939291,0.20449417,851.2,850.91,1.29451611]
[1756955939596,0.20449417,851.2,850.92,1.29451611]
[1756955939896,0.20449417,851.2,850.93,1.29451611]
[1756955940090,0.20449417,851.2,850.62,0.79128304]
[1756955940091,0.20449417,851.2,850.94,1.29449287]
[1756955940295,0.20449417,851.2,850.95,1.29449287]
[1756955940591,0.20449417,851.2,850.96,1.29449287]
[1756955940792,0.20449417,851.2,850.97,1.29449287]
[1756955940996,0.20449417,851.2,850.98,1.29449287]
[1756955941190,0.20449417,851.2,850.99,1.29449287]
[1756955941395,0.20449417,851.2,851.0,1.29449287]
[1756955941592,0.20449417,851.2,851.01,0.58773244]
[1756955941891,0.20449417,851.2,851.02,0.58773244]
[1756955942091,0.20449417,851.2,851.03,0.58773244]
[1756955942292,0.20449417,851.2,851.04,0.58773244]
[1756955942494,0.20449417,851.2,851.05,0.58773244]
[1756955942691,0.20449417,851.2,851.06,0.58773244]
[1756955942893,0.20449417,851.2,851.07,0.58773244]
[1756955943094,0.20449417,851.2,851.08,0.58773244]
[1756955943393,0.20449417,851.2,851.09,0.58773244]
[1756955943598,0.20449417,851.2,851.1,0.58773244]
[1756955943799,0.20449417,851.2,851.11,0.58773244]
[1756955944094,0.20449417,851.2,851.12,0.58773244]
[1756955944291,0.20449417,851.2,851.13,0.58773244]
[1756955944494,0.20449417,851.2,851.14,0.58773244]
[1756955944691,0.20449417,851.2,851.15,0.58773244]
[1756955944894,0.20449417,851.2,851.16,0.58773244]
[1756955945094,0.20449417,851.2,851.17,0.58773244]
[1756955945298,0.20449417,851.2,850.7,0.79128304]
[1756955945494,0.20449417,851.2,850.71,1.29444335]
[1756955945700,0.20449417,851.2,850.72,1.29444335]
[1756955945898,0.20449417,851.2,850.73,1.29444335]
[1756955946198,0.20449417,851.2,850.74,1.29444335]
[1756955946396,0.20449417,851.2,850.75,1.29444335]
[1756955946701,0.20449417,851.2,850.76,1.29444335]
[1756955946997,0.20449417,851.2,850.77,1.29444335]
[1756955947198,0.20449417,851.2,850.78,1.29444335]
[1756955947398,0.20449417,851.2,850.79,1.29444335]
[1756955947593,0.20449417,851.2,850.8,1.29444335]
[1756955947895,0.20449417,851.2,850.32,1.5752211]
[1756955947896,0.20449417,851.2,850.81,1.29444335]
[1756955948092,0.20449417,851.2,850.82,1.29444335]
[1756955948296,0.20449417,851.2,850.83,1.29444335]
[1756955948497,0.20449417,851.2,850.84,1.29444335]
[1756955948699,0.20449417,851.2,850.85,1.29444335]
[1756955948896,1.5724004,851.97,850.86,1.29444335]
[1756955949095,0.20437468,851.31,850.87,1.29444335]
[1756955949395,1.5724004,851.98,850.88,1.29444335]
[1756955949696,0.20437107,851.31,850.89,1.29444335]
[1756955949896,1.5724004,851.98,850.9,1.29444335]
[1756955950094,1.5724004,851.96,850.91,1.29444335]
[1756955950295,0.20436927,851.31,850.92,1.29444335]
[1756955950496,1.5724004,851.97,850.93,1.29444335]
[1756955950695,0.20436807,851.31,850.94,1.29444335]
[1756955950895,1.5724004,851.97,850.95,1.29444335]
[1756955951096,1.5724004,851.97,850.96,1.29444335]
[1756955951397,1.5724004,851.98,850.97,1.29444335]
[1756955951599,1.5724004,851.98,850.98,1.29444335]
[1756955951797,0.20436447,851.72,850.99,1.29444335]
[1756955952001,0.20436447,851.72,851.0,1.29444335]
[1756955952202,0.20436447,851.72,851.01,1.29444335]
[1756955952402,0.20436447,851.72,850.61,1.0501474]
[1756955952403,0.20436447,851.72,851.02,1.29444335]
[1756955952602,0.20436447,851.72,851.03,1.29444335]
[1756955952804,0.20436447,851.72,851.04,1.29444335]
[1756955953098,0.20436447,851.72,851.05,1.29444335]
[1756955953301,0.20436447,851.72,851.06,1.29444335]
[1756955953497,0.20436447,851.72,851.07,1.29444335]
[1756955953701,0.20436447,851.72,851.08,0.58768724]
[1756955953901,0.20436447,851.72,851.09,0.58768724]
[1756955954207,0.20436447,851.72,851.1,0.58768724]
[1756955954497,0.20436447,851.72,851.11,0.58768724]
[1756955954699,0.20436447,851.72,851.12,0.58768724]
[1756955954902,0.20436447,851.72,851.13,0.58768724]
[1756955955103,0.20436447,851.72,851.14,0.58768724]
[1756955955302,0.20436447,851.72,851.15,0.58768724]
[1756955955502,0.20436447,851.72,851.16,0.58768724]
[1756955955798,0.20436447,851.72,851.17,0.58768724]
[1756955956002,0.20436447,851.72,851.18,0.58768724]
[1756955956197,0.20436447,851.72,851.19,0.58768724]
[1756955956404,0.20436447,851.72,851.2,0.58760032]
[1756955956598,0.20436447,851.72,851.21,0.58760032]
[1756955956804,0.20436447,851.72,851.22,0.58760032]
[1756955957102,0.20436447,851.72,850.75,0.79128304]
[1756955957302,0.20436447,851.72,850.76,1.29301321]
[1756955957501,0.20436447,851.72,850.75,0.79128304]
[1756955957502,0.20436447,851.72,850.77,1.29301321]
[1756955957704,0.20436447,851.72,850.78,1.29301321]
[1756955958004,0.20436447,851.72,850.79,1.29301321]
[1756955958200,0.20436447,851.72,850.8,1.29301321]
[1756955958503,0.20436447,851.72,850.81,1.29301321]
[1756955958704,0.20436447,851.72,850.82,1.29301321]
[1756955958905,0.20436447,851.72,850.83,1.29301321]
[1756955959203,0.20436447,851.72,850.84,1.29301299]
[1756955959404,0.20436447,851.72,850.85,1.29301299]
[1756955959600,0.20436447,851.72,850.86,1.29301299]
[1756955959805,0.20436447,851.72,850.87,1.29301299]
[1756955960001,0.20436447,851.72,850.88,1.29301299]
[1756955960206,0.20436447,851.72,850.89,1.29301299]
[1756955960402,0.20436447,851.72,850.9,1.29301299]
[1756955960606,0.20436447,851.72,850.91,1.29301299]
[1756955960803,0.20436447,851.72,850.76,0.79128304]
[1756955960804,0.20436447,851.72,850.92,1.29301299]
[1756955961006,0.20436447,851.72,850.93,1.29301299]
[1756955961201,0.20436447,851.72,850.76,0.79128304]
[1756955961202,0.20436447,851.72,850.94,1.29301299]
[1756955961404,0.20436447,851.72,850.95,1.29301299]
[1756955961707,0.20436447,851.72,850.96,1.29301299]
[1756955961907,0.20436447,851.72,850.97,1.29301299]
[1756955962105,0.20436447,851.72,850.98,1.29301299]
[1756955962306,0.20436447,851.72,850.99,1.29301299]
[1756955962509,0.20436447,851.72,851.0,1.29301299]
[1756955962810,0.20436447,851.72,851.01,1.29301299]
[1756955963010,0.20436447,851.72,851.02,0.5876001]
[1756955963210,0.20436447,851.72,851.03,0.5876001]
[1756955963510,0.20436447,851.72,851.04,0.58759994]
[1756955963709,0.20436447,851.72,851.05,0.58759994]
[1756955963906,0.20436447,851.72,851.06,0.58759994]
[1756955964107,0.20436447,851.72,850.73,0.79128304]
[1756955964108,0.20436447,851.72,851.07,0.58759994]
[1756955964306,0.20436447,851.72,851.08,0.58759994]
[1756955964510,0.20436447,851.72,851.09,0.58759994]
[1756955964709,0.20436447,851.72,851.1,0.58759994]
[1756955964911,0.20436447,851.72,851.11,0.58759994]
[1756955965109,0.20436447,851.72,851.12,0.58759994]
[1756955965312,0.20436447,851.72,851.13,0.58759678]
[1756955965507,0.20436447,851.72,851.14,0.58759678]
[1756955965710,0.20436447,851.72,851.15,0.58759678]
[1756955965913,0.20436447,851.72,851.16,0.58759678]
[1756955966109,0.20436447,851.72,851.17,0.58759678]
[1756955966314,0.20436447,851.72,851.18,0.58759678]
[1756955966613,0.20436447,851.72,851.19,0.58759678]
[1756955966912,0.20436447,851.72,851.2,0.58759678]
[1756955967111,0.20436447,851.72,851.21,0.58759678]
[1756955967308,0.20436447,851.72,851.22,0.58759678]
[1756955967510,0.20436447,851.72,850.71,0.79128304]
[1756955967511,0.20436447,851.72,851.23,0.58759678]
[1756955967712,0.20436447,851.72,851.24,0.58759678]
[1756955967911,0.20436447,851.72,850.71,0.79128304]
[1756955968111,0.20436447,851.72,850.72,1.29273334]
[1756955968308,0.20436447,851.72,850.75,0.79128304]
[1756955968614,0.20436447,851.72,850.76,1.29273334]
[1756955968816,0.20436447,851.72,850.77,1.29273334]
[1756955969012,0.20436447,851.72,850.78,1.29273334]
[1756955969309,0.20436447,851.72,850.79,1.29273334]
[1756955969514,0.20436447,851.72,850.8,1.29273334]
[1756955969714,0.20436447,851.72,850.81,1.29273334]
[1756955970011,0.20436447,851.72,850.82,1.29273334]
[1756955970217,0.20436447,851.72,850.83,1.29273334]
[1756955970514,0.20436447,851.72,850.84,1.29273334]
[1756955970715,0.20436447,851.72,850.85,1.29273334]
[1756955970913,0.20436447,851.72,850.86,1.29273334]
[1756955971111,0.20436447,851.72,850.87,1.29273334]
[1756955971314,0.20436447,851.72,850.88,1.29273334]
[1756955971609,0.20436447,851.72,850.89,1.29273334]
[1756955971813,0.20436447,851.72,850.9,1.29273334]
[1756955972114,0.20436447,851.72,850.91,1.29273334]
[1756955972311,0.20436447,851.72,850.92,1.29273334]
[1756955972515,0.20436447,851.72,850.93,1.29273334]
[1756955972813,0.20436447,851.72,850.94,1.29273334]
[1756955973011,0.20436447,851.72,850.95,1.29273334]
[1756955973214,0.20436447,851.72,850.96,1.29273334]
[1756955973413,0.20436447,851.72,850.97,1.29273334]
[1756955973614,0.20436447,851.72,850.98,1.29273334]
[1756955973814,0.20436447,851.72,850.99,1.29273334]
[1756955974119,0.20436447,851.72,851.0,1.29273334]
[1756955974315,0.20436447,851.72,851.01,1.29273334]
[1756955974516,0.20436447,851.72,851.02,1.29273334]
[1756955974715,0.20436447,851.72,850.94,0.79128304]
[1756955974716,0.20436447,851.72,851.03,1.29273334]
[1756955975013,0.20436447,851.72,851.04,1.29273334]
[1756955975215,0.20436447,851.72,851.05,1.29273334]
[1756955975414,0.20436447,851.72,851.06,1.29273334]
[1756955975715,0.20436447,851.72,851.07,1.29273334]
[1756955975914,0.20436447,851.72,851.08,1.29273334]
[1756955976118,0.20436447,851.72,851.09,1.29273334]
[1756955976318,0.20436447,851.72,851.1,1.29227245]
[1756955976514,0.20436447,851.72,851.11,1.29227245]
[1756955976719,0.20436447,851.72,851.12,1.29227245]
[1756955976918,0.20436447,851.72,851.13,1.29227245]
[1756955977115,0.20436447,851.72,851.14,1.29227245]
[1756955977320,0.20436447,851.72,851.15,1.29214706]
[1756955977518,0.20436447,851.72,851.16,1.29214706]
[1756955977717,0.20436447,851.72,851.17,1.29214706]
[1756955978020,0.20436447,851.72,851.18,1.29214706]
[1756955978222,0.20436447,851.72,851.19,1.29214706]
[1756955978420,0.20436447,851.72,851.2,1.29214706]
[1756955978720,0.20436447,851.72,851.21,1.29214706]
[1756955978920,0.20436447,851.72,851.22,1.29214706]
[1756955979220,0.20436447,851.72,851.23,1.29214706]
[1756955979420,0.20436447,851.72,851.24,1.29214706]
[1756955979717,0.20436447,851.72,851.25,0.58743402]
[1756955979915,0.20436447,851.72,851.26,0.58743402]
[1756955980120,0.20436447,851.72,851.27,0.58743402]
[1756955980420,0.20436447,851.72,851.28,0.58743402]
[1756955980616,0.20436447,851.72,851.29,0.58743402]
[1756955980823,0.20436447,851.72,851.3,0.58743397]
[1756955981118,0.20436447,851.72,851.31,0.58743397]
[1756955981418,0.20436447,851.72,851.32,0.58743397]
[1756955981619,0.20436447,851.72,851.33,0.58743397]
[1756955981822,0.20436447,851.72,850.95,0.7888462]
[1756955981823,0.20436447,851.72,851.34,0.58743397]
[1756955982018,0.20436447,851.72,851.35,0.58743397]
[1756955982222,0.20436447,851.72,851.36,0.58743397]
[1756955982522,0.20436447,851.72,851.37,0.58743397]
[1756955982723,0.20436447,851.72,851.38,0.58743397]
[1756955982924,0.20436447,851.72,850.95,0.7888462]
[1756955983121,0.20436447,851.72,850.96,1.291759]
[1756955983320,0.20436447,851.72,850.97,1.291759]
[1756955983520,0.20436447,851.72,850.98,1.291759]
[1756955983823,0.20436447,851.72,850.99,1.291759]
[1756955984121,0.20436447,851.72,851.0,1.291759]
[1756955984321,0.20436447,851.72,851.01,1.291759]
[1756955984520,0.20436447,851.72,851.02,1.291759]
[1756955984824,0.20436447,851.72,851.03,1.291759]
[1756955985020,0.20436447,851.72,851.04,1.291759]
[1756955985225,0.20436447,851.72,851.05,1.291759]
[1756955985425,0.20436447,851.72,851.06,1.291759]
[1756955985625,0.20436447,851.72,851.07,1.291759]
[1756955985825,0.20436447,851.72,851.08,1.291759]
[1756955986022,0.20436447,851.72,851.09,1.291759]
[1756955986225,0.20436447,851.72,851.1,1.291759]
[1756955986424,0.20436447,851.72,851.11,1.291759]
[1756955986622,0.20436447,851.72,851.12,1.291759]
[1756955986827,0.20436447,851.72,851.13,1.291759]
[1756955987028,0.20436447,851.72,851.14,1.291759]
[1756955987229,0.20436447,851.72,851.15,1.291759]
[1756955987429,0.20436447,851.72,851.16,1.291759]
[1756955987628,0.20436447,851.72,851.17,1.291759]
[1756955987828,0.20436447,851.72,851.18,1.291759]
[1756955988025,0.20436447,851.72,851.19,1.291759]
[1756955988228,0.20436447,851.72,851.2,1.291759]
[1756955988428,0.20436447,851.72,851.21,1.291759]
[1756955988625,0.20436447,851.72,851.22,1.291759]
[1756955988927,0.20436447,851.72,851.23,1.291759]
[1756955989129,0.20436447,851.72,851.24,1.291759]
[1756955989328,0.20436447,851.72,851.25,1.291759]
[1756955989529,0.20436447,851.72,851.26,1.291759]
[1756955989829,0.20436447,851.72,851.27,0.58743397]
[1756955990030,0.20436447,851.72,851.28,0.58743397]
[1756955990326,0.20436447,851.72,851.29,0.58743397]
[1756955990529,0.20436447,851.72,851.3,0.58743397]
[1756955990726,0.20436447,851.72,851.31,0.58743397]
[1756955990925,0.20436447,851.72,851.32,0.58743397]
[1756955991130,0.20436447,851.72,851.33,0.58743397]
[1756955991330,0.20436447,851.72,851.34,0.58743397]
[1756955991529,0.20436447,851.72,851.35,0.58743397]
[1756955991725,0.20436447,851.72,851.36,0.58743397]
[1756955991930,0.20436447,851.72,851.37,0.58743397]
[1756955992130,0.20436447,851.72,851.38,0.58743397]
[1756955992331,0.20436447,851.72,851.39,0.58743397]
[1756955992531,0.20436447,851.72,850.9,0.78833393]
[1756955992832,0.20436447,851.72,850.91,1.29063761]
[1756955993031,0.20436447,851.72,850.92,1.29063761]
[1756955993232,0.20436447,851.72,850.93,1.29063761]
[1756955993428,0.20436447,851.72,850.94,1.29063761]
[1756955993631,0.20436447,851.72,850.95,1.29063761]
[1756955993932,0.20436447,851.72,850.96,1.29063761]
[1756955994231,0.20436447,851.72,850.97,1.29063761]
[1756955994531,0.20436447,851.72,850.98,1.29063761]
[1756955994733,0.20436447,851.72,850.99,1.29063761]
[1756955994932,0.20436447,851.72,851.0,1.29063761]
[1756955995130,0.20436447,851.72,851.01,1.29063761]
[1756955995329,0.20436447,851.72,851.02,1.29063761]
[1756955995633,0.20436447,851.72,851.03,1.29063761]
[1756955995935,0.20436447,851.72,851.04,1.29063761]
[1756955996233,0.20436447,851.72,851.05,1.29063761]
[1756955996430,0.20436447,851.72,851.06,1.29063761]
[1756955996732,0.20436447,851.72,851.07,1.29063761]
[1756955996935,0.20436447,851.72,851.08,1.29063761]
[1756955997130,0.20436447,851.72,851.09,1.29063761]
[1756955997331,0.20436447,851.72,851.1,1.29063761]
[1756955997530,0.20436447,851.72,851.11,1.29063761]
[1756955997831,0.20436447,851.72,851.12,1.29063761]
[1756955998131,0.20436447,851.72,851.13,1.29063761]
[1756955998334,0.20436447,851.72,851.14,1.29063761]
[1756955998535,0.20436447,851.72,851.15,1.29063761]
[1756955998733,0.20436447,851.72,851.16,1.29063761]
[1756955999035,0.20436447,851.72,851.17,1.29063761]
[1756955999230,0.20436447,851.72,851.18,1.29063761]
[1756955999434,0.20436447,851.72,851.19,1.29063761]
[1756955999729,0.20436447,851.72,851.2,1.29063761]
[1756955999949,0.20436447,851.72,851.21,1.29063761]
[1756956000132,0.20436447,851.72,851.22,0.58743262]
[1756956000331,0.20436447,851.72,851.23,0.58743262]
[1756956000530,0.20436447,851.72,851.24,0.58743262]
[1756956000832,0.20436447,851.72,851.25,0.58743262]
[1756956001132,0.20436447,851.72,851.26,0.58743262]
[1756956001334,0.20436447,851.72,851.27,0.58743262]
[1756956001535,0.20436447,851.72,851.28,0.58743262]
[1756956001735,0.20436447,851.72,851.29,1.2913808]
[1756956002034,0.20436447,851.72,851.3,1.2913808]
[1756956002234,0.20436447,851.72,851.31,1.2913808]